bitfinex-derivatives/quotes_SOLF0:USTF0_20241107
["timestamp","ask_amount","ask_price","bid_price","bid_amount"]
[1730946516882,8.05951038,190.62,190.6,2.6213]
[1730946517058,8.05951038,190.62,190.59,1.293]
[1730946517365,8.05951038,190.63,190.61,2.6211]
[1730946517558,8.05951038,190.63,190.59,1.293]
[1730946518869,8.05951038,190.63,190.61,2.6211]
[1730946519956,8.05951038,190.65,190.59,1.293]
[1730946520153,8.05951038,190.65,190.63,2.6208]
[1730946520553,2.6871073,190.72,190.63,2.6208]
[1730946520759,8.05951038,190.66,190.63,2.6208]
[1730946522562,8.05951038,190.64,190.63,2.6208]
[1730946522860,3.6,190.68,190.63,2.6208]
[1730946523165,8.05951038,190.64,190.63,2.6208]
[1730946523367,8.05951038,190.65,190.63,2.6208]
[1730946524155,3.6,190.68,190.55,1.21]
[1730946524156,8.05951038,190.63,190.55,1.21]
[1730946524396,8.05951038,190.6,190.55,1.21]
[1730946524666,8.05951038,190.6,190.56,4.13566772]
[1730946524864,8.05951038,190.6,190.55,1.21]
[1730946525170,8.05951038,190.6,190.57,2.6216]
[1730946526867,3.58,190.65,190.58,8.05951038]
[1730946527065,8.05951038,190.63,190.58,8.05951038]
[1730946527262,8.05951038,190.63,190.61,2.621]
[1730946527863,8.05951038,190.63,190.58,8.05951038]
[1730946528460,8.05951038,190.63,190.59,4.13641111]
[1730946528659,8.05951038,190.63,190.58,8.05951038]
[1730946528969,8.05951038,190.63,190.62,2.621]
[1730946529265,18.79500526,190.67,190.62,2.621]
[1730946530768,16.17470526,190.67,190.55,13.80470526]
[1730946530967,12.59470526,190.65,190.56,10.7667527]
[1730946531273,12.59470526,190.65,190.55,1.21]
[1730946531456,12.59470526,190.65,190.57,4.1414454]
[1730946531655,12.59470526,190.65,190.55,1.21]
[1730946531859,12.59470526,190.65,190.56,10.7728201]
[1730946532066,12.59470526,190.65,190.57,4.14338548]
[1730946532264,12.59470526,190.65,190.55,1.21]
[1730946532468,12.59470526,190.65,190.56,10.7735285]
[1730946532665,12.59470526,190.65,190.57,4.14369455]
[1730946532866,2.6209,190.63,190.59,2.6214]
[1730946535372,3.58,190.67,190.53,12.59470526]
[1730946535373,12.59470526,190.59,190.53,2.6222]
[1730946535565,12.59470526,190.59,190.51,2.5159]
[1730946535874,3.58,190.61,190.52,6.63155029]
[1730946536079,3.58,190.61,190.56,2.6217]
[1730946536574,6.2012,190.61,190.56,2.6217]
[1730946537764,6.2012,190.61,190.51,2.5159]
[1730946537971,6.2012,190.61,190.57,2.6217]
[1730946538970,3.58,190.61,190.51,2.5159]
[1730946539172,3.58,190.61,190.52,4.1432476]
[1730946539467,3.58,190.61,190.53,4.1432476]
[1730946539674,3.58,190.61,190.54,4.1432476]
[1730946539871,3.58,190.61,190.51,2.5159]
[1730946540165,2.6214,190.6,190.55,2.622]
[1730946541170,12.59470526,190.59,190.51,2.5159]
[1730946541371,2.6217,190.58,190.52,4.14242873]
[1730946541672,12.59470526,190.54,190.4,3.58]
[1730946541870,12.59470526,190.54,190.41,9.25849874]
[1730946541871,16.17470526,190.54,190.41,9.25849874]
[1730946542068,16.17470526,190.54,190.42,13.888472]
[1730946542366,16.17470526,190.54,190.43,23.36405935]
[1730946542569,16.17470526,190.54,190.44,10.76935409]
[1730946542772,16.17470526,190.54,190.45,10.76935409]
[1730946542977,16.17470526,190.54,190.43,12.59470526]
[1730946542978,16.17470526,190.54,190.46,10.76935409]
[1730946543179,2.6219,190.56,190.47,4.14205926]
[1730946543476,2.6219,190.56,190.43,12.59470526]
[1730946543477,12.59470526,190.55,190.43,12.59470526]
[1730946543774,12.59470526,190.55,190.51,2.6225]
[1730946544183,12.59470526,190.55,190.43,12.59470526]
[1730946544376,12.59470526,190.55,190.41,3.8042]
[1730946544377,16.17470526,190.57,190.54,2.6221]
[1730946544764,12.59470526,190.57,190.54,2.6221]
[1730946546781,12.59470526,190.57,190.46,12.59470526]
[1730946547072,12.59470526,190.54,190.42,3.58]
[1730946547389,12.59470526,190.54,190.41,16.39890526]
[1730946547390,12.59470526,190.54,190.43,4.12940345]
[1730946547571,12.59470526,190.54,190.43,4.12769297]
[1730946547977,12.59470526,190.54,190.5,2.6226]
[1730946548473,3.58,190.53,190.5,2.6226]
[1730946548979,12.59470526,190.52,190.42,6.60162959]
[1730946549284,8.06667576,190.47,190.42,8.06667576]
[1730946549468,8.06667576,190.47,190.46,2.6232]
[1730946551367,8.06667576,190.47,190.41,3.8042]
[1730946551574,8.06667576,190.47,190.44,2.6234]
[1730946551774,3.58,190.53,190.41,11.87087576]
[1730946551975,8.06667576,190.47,190.41,11.87087576]
[1730946552180,8.06667576,190.47,190.43,8.06667576]
[1730946552580,8.06667576,190.49,190.43,8.06667576]
[1730946553080,8.06667576,190.49,190.48,2.6229]
[1730946554175,8.06667576,190.52,190.47,8.06667576]
[1730946554996,3.58,190.55,190.28,6.16126229]
[1730946554997,8.06667576,190.47,190.28,6.16126229]
[1730946555072,8.06667576,190.43,190.36,8.06667576]
[1730946555477,8.06667576,190.43,190.41,2.6239]
[1730946556723,8.06667576,190.43,190.34,2.4832]
[1730946556880,8.06667576,190.44,190.38,8.06667576]
[1730946557276,8.06667576,190.44,190.41,2.6238]
[1730946557880,8.06667576,190.42,190.41,2.6238]
[1730946560474,3.58,190.47,190.43,2.6235]
[1730946560782,8.06667576,190.44,190.37,8.06667576]
[1730946560982,2.6233,190.46,190.4,2.624]
[1730946561171,8.06667576,190.42,190.4,2.624]
[1730946561788,8.06667576,190.42,190.39,2.6241]
[1730946562090,8.06667576,190.42,190.37,8.06667576]
[1730946562282,8.06667576,190.42,190.34,2.4832]
[1730946562481,8.06667576,190.42,190.35,8.06667576]
[1730946562878,8.06667576,190.42,190.4,2.624]
[1730946563977,8.06667576,190.42,190.41,2.6239]
[1730946564377,8.06667576,190.42,190.34,2.4832]
[1730946564578,8.06667576,190.42,190.39,2.6241]
[1730946565278,8.06667576,190.42,190.28,35.56960902]
[1730946565481,8.06667576,190.38,190.37,2.6244]
[1730946565706,58.80515013,190.48,190.35,8.06667576]
[1730946565883,8.06667576,190.42,190.35,8.06667576]
[1730946566580,8.06667576,190.42,190.4,2.624]
[1730946567979,8.06667576,190.42,190.41,2.6239]
[1730946568706,8.06667576,190.42,190.37,8.06667576]
[1730946569084,8.06667576,190.42,190.31,7.4523]
[1730946569278,8.06667576,190.42,190.4,2.6239]
[1730946570487,8.06667576,190.4,190.38,2.6243]
[1730946570688,6.2036,190.44,190.38,2.6243]
[1730946571588,3.58,190.44,190.38,2.6243]
[1730946571890,8.06667576,190.38,190.36,2.6245]
[1730946573291,8.06667576,190.37,190.32,8.06667576]
[1730946574383,8.06667576,190.37,190.36,2.6246]
[1730946575188,8.06667576,190.37,190.27,1.2977]
[1730946575393,8.06667576,190.37,190.34,2.6249]
[1730946577283,15.73,190.49,190.31,8.06667576]
[1730946577593,15.73,190.51,190.34,8.06667576]
[1730946577895,15.73,190.51,190.36,8.06667576]
[1730946577896,8.06667576,190.41,190.36,8.06667576]
[1730946578483,8.06667576,190.41,190.39,2.624]
[1730946580594,8.06667576,190.41,190.36,8.06667576]
[1730946580894,8.06667576,190.41,190.4,2.624]
[1730946581798,3.58,190.45,190.36,8.06667576]
[1730946581997,58.80538945,190.49,190.4,8.06667576]
[1730946582189,58.80538945,190.49,190.29,5.251]
[1730946582190,58.80538945,190.49,190.42,8.06667576]
[1730946582498,58.80538945,190.49,190.29,5.251]
[1730946582499,58.80538945,190.49,190.44,8.06667576]
[1730946582791,8.06667576,190.48,190.44,8.06667576]
[1730946583094,8.06667576,190.48,190.39,4.7965]
[1730946583298,8.06667576,190.46,190.41,8.06667576]
[1730946583494,8.06667576,190.46,190.45,2.6233]
[1730946584894,8.06667576,190.45,190.43,2.6236]
[1730946585086,105.27196,190.52,190.39,1.2165]
[1730946585899,105.27196,190.52,190.37,2.4079]
[1730946586203,105.27196,190.52,190.38,4.07133739]
[1730946586386,8.06667576,190.42,190.37,2.4079]
[1730946586992,8.06667576,190.42,190.38,4.07400455]
[1730946587298,8.06667576,190.4,190.38,4.07400455]
[1730946587501,8.06667576,190.4,190.37,2.4079]
[1730946588801,8.06667576,190.4,190.39,2.6242]
[1730946590476,2.6232,190.46,190.41,2.6239]
[1730946591396,2.6232,190.46,190.37,2.4079]
[1730946591397,105.27196,190.52,190.37,2.4079]
[1730946591598,105.27196,190.52,190.38,7.64311077]
[1730946591796,105.27196,190.52,190.39,4.08311077]
[1730946591998,105.27196,190.52,190.43,2.6235]
[1730946592205,105.27196,190.52,190.38,3.56]
[1730946592391,105.27196,190.52,190.39,12.15006106]
[1730946592392,8.06667576,190.45,190.39,12.15006106]
[1730946592598,8.06667576,190.45,190.44,2.6234]
[1730946593802,8.06667576,190.45,190.37,5.9679]
[1730946593803,8.06667576,190.47,190.45,2.6233]
[1730946595805,8.06667576,190.47,190.46,2.6232]
[1730946596904,8.06667576,190.47,190.41,8.06667576]
[1730946596905,3.56,190.51,190.47,2.623]
[1730946597509,3.56,190.51,190.43,2.6235]
[1730946597757,8.06667576,190.44,190.43,2.6235]
[1730946600801,2.6229,190.49,190.43,2.6235]
[1730946601108,6.19962902,190.51,190.37,10.47457576]
[1730946601109,6.19962902,190.51,190.41,2.6239]
[1730946601307,6.19962902,190.51,190.37,2.4079]
[1730946601502,8.06667576,190.4,190.39,2.6242]
[1730946602011,8.06667576,190.42,190.37,2.4079]
[1730946602212,8.06667576,190.42,190.4,2.6239]
[1730946603112,3.56,190.45,190.37,2.4079]
[1730946603304,3.56,190.45,190.41,2.6238]
[1730946603500,9.78732523,190.51,190.41,2.6238]
[1730946603812,7.14769621,190.51,190.37,5.9679]
[1730946604200,3.56,190.6,190.37,5.9679]
[1730946604411,3.56,190.6,190.51,2.6225]
[1730946604616,8.06667576,190.53,190.51,2.6225]
[1730946604910,3.56,190.6,190.43,3.56]
[1730946605109,3.56,190.6,190.37,2.4079]
[1730946605305,3.56,190.54,190.38,14.17747815]
[1730946605499,107.89436,190.52,190.46,2.6232]
[1730946605707,2.59785454,190.51,190.39,3.56]
[1730946606005,8.06667576,190.42,190.37,2.4079]
[1730946606208,2.5960173,190.49,190.41,2.6238]
[1730946606408,8.06667576,190.43,190.41,2.6238]
[1730946608318,8.06667576,190.41,190.39,2.6241]
[1730946609016,8.06667576,190.41,190.4,2.624]
[1730946609316,6.183,190.48,190.37,2.4079]
[1730946609615,8.06667576,190.43,190.41,2.6238]
[1730946613313,8.06667576,190.41,190.37,2.4079]
[1730946613514,8.06667576,190.39,190.37,2.4079]
[1730946614113,8.06667576,190.39,190.38,2.6243]
[1730946615021,8.06667576,190.4,190.39,2.624]
[1730946616119,3.54,190.47,190.37,2.4079]
[1730946616308,8.06667576,190.46,190.4,8.06667576]
[1730946616514,8.06667576,190.48,190.42,8.06667576]
[1730946617412,3.54,190.51,190.42,8.06667576]
[1730946617611,8.06667576,190.47,190.46,2.6231]
[1730946617812,3.54,190.51,190.46,2.6231]
[1730946618112,8.06667576,190.47,190.46,2.6231]
[1730946619322,7.18240006,190.51,190.46,2.6231]
[1730946619510,7.18240006,190.51,190.45,8.06667576]
[1730946619712,15.24907582,190.51,190.45,8.06667576]
[1730946620119,7.18240006,190.51,190.5,2.6227]
[1730946620525,102.25896006,190.52,190.5,8.06667576]
[1730946620718,96.33156006,190.52,190.51,10.68917576]
[1730946620922,91.85293479,190.75,190.51,8.06667576]
[1730946621128,8.06667576,190.62,190.59,2.6214]
[1730946622315,3.54,190.68,190.59,2.6214]
[1730946622527,8.06667576,190.63,190.6,2.6212]
[1730946623325,12.59721093,190.65,190.6,2.6212]
[1730946623520,1.3112,190.67,190.54,3.54]
[1730946623835,1.3112,190.67,190.58,12.59721093]
[1730946624321,1.3112,190.67,190.65,2.6205]
[1730946624727,1.3112,190.67,190.61,3.54]
[1730946624927,1.3112,190.67,190.63,2.6207]
[1730946625525,1.3112,190.67,190.61,3.54]
[1730946625724,12.59721093,190.7,190.61,3.54]
[1730946626130,12.59721093,190.7,190.65,2.6205]
[1730946626429,1.2237,190.72,190.61,3.54]
[1730946626629,12.59721093,190.73,190.67,2.6202]
[1730946626930,12.59721093,190.73,190.61,3.54]
[1730946627139,12.59721093,190.73,190.66,2.6203]
[1730946627938,12.59721093,190.73,190.67,2.6202]
[1730946629029,15.21671093,190.73,190.65,2.6205]
[1730946629236,1.2237,190.74,190.61,3.54]
[1730946629434,12.59721093,190.72,190.61,3.54]
[1730946629739,12.59721093,190.72,190.65,2.6205]
[1730946630326,12.59721093,190.72,190.61,3.54]
[1730946630725,12.59721093,190.72,190.66,2.6203]
[1730946630930,12.59721093,190.72,190.62,12.59721093]
[1730946631332,1.2237,190.74,190.64,12.59721093]
[1730946631735,12.59721093,190.77,190.67,12.59721093]
[1730946632031,12.59721093,190.77,190.68,3.54]
[1730946632838,2.4333,190.78,190.74,2.6193]
[1730946632839,1.2241,190.78,190.74,2.6193]
[1730946634581,1.2241,190.78,190.72,2.6195]
[1730946634865,1.2241,190.78,190.67,12.59721093]
[1730946634866,12.59721093,190.76,190.67,3.54]
[1730946635048,12.59721093,190.76,190.69,2.62]
[1730946635248,12.59721093,190.76,190.64,12.59721093]
[1730946635438,12.59721093,190.76,190.65,3.54]
[1730946635743,2.6193,190.75,190.69,2.62]
[1730946636047,12.59721093,190.76,190.65,3.54]
[1730946636249,1.188,190.74,190.65,3.54]
[1730946636442,12.59721093,190.76,190.65,3.54]
[1730946636443,15.21641093,190.76,190.65,3.54]
[1730946636640,2.3735,190.83,190.67,12.59721093]
[1730946636835,12.59721093,190.81,190.67,12.59721093]
[1730946637744,2.6185,190.8,190.73,2.6194]
[1730946637946,2.6185,190.8,190.7,12.59721093]
[1730946638246,12.59721093,190.81,190.71,3.54]
[1730946638545,18.51071093,190.83,190.71,3.54]
[1730946638750,2.6184,190.81,190.74,2.6192]
[1730946639844,2.6184,190.81,190.74,2.6194]
[1730946640345,12.59721093,190.81,190.69,3.54]
[1730946640544,12.59721093,190.81,190.7,12.59721093]
[1730946641461,2.3735,190.83,190.7,12.59721093]
[1730946641752,2.3735,190.83,190.78,2.6188]
[1730946642455,2.3735,190.83,190.79,2.6187]
[1730946643356,4.9917,190.83,190.78,2.6188]
[1730946643551,2.3735,190.83,190.74,3.54]
[1730946644046,2.6185,190.81,190.71,12.59721093]
[1730946644254,2.6185,190.81,190.72,3.54]
[1730946644451,4.9917,190.83,190.76,2.6191]
[1730946644651,2.3735,190.83,190.76,2.6191]
[1730946645390,2.6184,190.82,190.76,2.6191]
[1730946646956,12.59721093,190.81,190.71,12.59721093]
[1730946647157,12.59721093,190.81,190.73,2.6195]
[1730946647464,2.3735,190.83,190.68,3.52]
[1730946647465,12.59721093,190.78,190.68,3.52]
[1730946647657,12.59721093,190.78,190.67,3.52]
[1730946647961,2.619,190.77,190.71,2.6198]
[1730946648158,2.619,190.77,190.67,3.52]
[1730946648964,12.59721093,190.76,190.66,3.52]
[1730946649161,12.59721093,190.73,190.66,3.52]
[1730946649561,12.59721093,190.73,190.68,2.6201]
[1730946650362,12.59721093,190.71,190.6,2.4791]
[1730946650558,12.59721093,190.68,190.6,3.52]
[1730946650970,2.62,190.7,190.64,2.6207]
[1730946651273,12.59721093,190.71,190.6,3.52]
[1730946651465,15.21701093,190.71,190.65,2.6206]
[1730946653862,12.59721093,190.71,190.6,3.52]
[1730946654464,15.21701093,190.71,190.61,3.54]
[1730946654858,12.59721093,190.71,190.65,2.6205]
[1730946655057,2.4324,190.72,190.61,16.13721093]
[1730946655259,1.1968,190.78,190.66,12.59721093]
[1730946655461,1.1968,190.78,190.72,2.6196]
[1730946656261,1.1968,190.78,190.74,2.6193]
[1730946656372,1.1968,190.78,190.68,12.59721093]
[1730946656670,1.1968,190.78,190.73,2.6194]
[1730946658977,12.59721093,190.76,190.71,2.6198]
[1730946661266,12.59721093,190.76,190.59,2.36866392]
[1730946661267,12.59721093,190.74,190.59,2.36866392]
[1730946661476,12.59721093,190.71,190.6,29.10717157]
[1730946661674,12.59721093,190.71,190.61,10.49926064]
[1730946661874,12.59721093,190.71,190.62,10.49926064]
[1730946662075,12.59721093,190.71,190.62,4.03817717]
[1730946662272,12.59721093,190.71,190.6,17.36521093]
[1730946662565,12.59721093,190.71,190.63,10.50165285]
[1730946662773,12.59721093,190.71,190.64,6.46484229]
[1730946662973,12.59721093,190.71,190.63,10.50165285]
[1730946662974,12.59721093,190.71,190.65,6.46553731]
[1730946663174,12.59721093,190.71,190.66,4.04052643]
[1730946663382,12.59721093,190.71,190.58,1.2427]
[1730946663383,12.59721093,190.68,190.58,1.2427]
[1730946663581,12.59721093,190.68,190.59,14.05703107]
[1730946663772,12.59721093,190.68,190.64,2.6207]
[1730946664783,1.2364,190.7,190.64,2.6207]
[1730946665175,1.1899,190.73,190.69,2.62]
[1730946665373,3.54,190.78,190.65,16.13721093]
[1730946665374,12.59721093,190.77,190.65,16.13721093]
[1730946665579,2.4337,190.78,190.68,12.59721093]
[1730946665884,12.59721093,190.74,190.66,14.06096911]
[1730946666137,12.59721093,190.74,190.66,3.54]
[1730946666583,2.6195,190.73,190.67,4.04482775]
[1730946667476,12.59721093,190.74,190.67,8.09006493]
[1730946667672,2.6196,190.72,190.67,4.04482775]
[1730946668176,12.59721093,190.71,190.67,4.04482775]
[1730946668482,12.59721093,190.68,190.58,16.13721093]
[1730946668682,12.59721093,190.68,190.64,2.6207]
[1730946669181,12.59721093,190.68,190.58,16.13721093]
[1730946669974,2.5091,190.7,190.58,16.13721093]
[1730946670174,2.6203,190.68,190.58,16.13721093]
[1730946670377,1.1956,190.7,190.58,16.13721093]
[1730946670576,1.2024,190.71,190.67,2.6203]
[1730946670780,2.6196,190.73,190.67,2.6203]
[1730946670979,2.6196,190.73,190.61,12.59721093]
[1730946671689,2.6196,190.73,190.66,2.6204]
[1730946673876,2.6197,190.72,190.61,16.11721093]
[1730946674072,12.59721093,190.72,190.65,2.6206]
[1730946674277,12.59721093,190.72,190.61,16.11721093]
[1730946674480,12.59721093,190.69,190.58,3.52]
[1730946674691,12.59721093,190.69,190.62,2.6209]
[1730946674984,12.59721093,190.69,190.59,12.59721093]
[1730946674985,15.21731093,190.69,190.59,12.59721093]
[1730946675183,15.21731093,190.69,190.62,2.621]
[1730946675385,15.21731093,190.69,190.59,12.59721093]
[1730946676886,15.21731093,190.69,190.63,2.6208]
[1730946677187,15.21731093,190.69,190.58,3.52]
[1730946677387,12.59721093,190.69,190.62,2.6209]
[1730946677586,2.6202,190.68,190.58,3.52]
[1730946677790,15.21741093,190.68,190.58,3.52]
[1730946678081,15.21741093,190.68,190.62,2.6209]
[1730946679088,15.21741093,190.68,190.63,2.6209]
[1730946679589,12.59721093,190.68,190.63,2.6209]
[1730946680391,15.21741093,190.68,190.63,2.6209]
[1730946680691,12.59721093,190.68,190.57,13.80721093]
[1730946680882,12.59721093,190.68,190.64,2.6207]
[1730946684686,12.59721093,190.7,190.59,12.59721093]
[1730946684991,12.59721093,190.73,190.62,12.59721093]
[1730946685196,1.266,190.74,190.64,12.59721093]
[1730946685487,13.80761093,190.78,190.67,12.59721093]
[1730946685694,13.80761093,190.78,190.68,3.52]
[1730946685890,1.2024,190.79,190.75,2.6192]
[1730946686906,16.49061093,190.81,190.75,2.6191]
[1730946687110,13.87221093,190.81,190.72,12.59721093]
[1730946687313,2.5143,190.87,190.81,2.6183]
[1730946687594,2.5143,190.87,190.77,16.11721093]
[1730946688083,2.5143,190.87,190.76,1.2402]
[1730946688288,12.59721093,190.85,190.76,4.7602]
[1730946688885,12.59721093,190.85,190.72,12.59721093]
[1730946688886,12.59721093,190.85,190.8,2.6185]
[1730946689093,12.59721093,190.85,190.75,16.11721093]
[1730946689394,12.59721093,190.85,190.76,3.52]
[1730946689978,12.59721093,190.85,190.73,1.2402]
[1730946690189,12.59721093,190.82,190.74,3.52]
[1730946690392,12.59721093,190.8,190.71,3.52]
[1730946690979,12.59721093,190.8,190.74,2.6193]
[1730946693890,15.21571093,190.8,190.74,2.6193]
[1730946694491,12.59721093,190.8,190.71,3.52]
[1730946694692,12.59721093,190.8,190.75,2.6192]
[1730946695688,12.59721093,190.8,190.71,3.52]
[1730946695993,12.59721093,190.8,190.74,2.6193]
[1730946697790,12.59721093,190.8,190.76,2.619]
[1730946697994,12.59721093,190.8,190.71,3.52]
[1730946698192,12.59721093,190.8,190.68,13.80211093]
[1730946698392,12.59721093,190.8,190.69,3.52]
[1730946699199,2.6188,190.79,190.69,3.52]
[1730946700292,15.21621093,190.77,190.68,1.2049]
[1730946700500,9.37183191,190.84,190.68,1.2049]
[1730946700501,12.59721093,190.74,190.68,1.2049]
[1730946700698,12.59721093,190.74,190.69,2.62]
[1730946701295,12.59721093,190.72,190.67,2.6202]
[1730946701606,12.59721093,190.72,190.6,12.59721093]
[1730946701962,15.21701093,190.72,190.61,3.52]
[1730946702295,15.21701093,190.72,190.6,12.59721093]
[1730946702502,15.21701093,190.72,190.66,2.6205]
[1730946703204,15.21701093,190.72,190.61,3.52]
[1730946703205,12.59721093,190.69,190.64,2.6207]
[1730946703396,12.59721093,190.69,190.59,1.1893]
[1730946703594,12.59721093,190.69,190.62,2.6209]
[1730946703595,12.59721093,190.67,190.62,2.6209]
[1730946703805,12.59721093,190.67,190.58,4.7614]
[1730946704305,12.59721093,190.67,190.58,1.2614]
[1730946704601,12.59721093,190.64,190.57,3.5]
[1730946704903,12.59721093,190.64,190.59,2.6213]
[1730946705609,12.59721093,190.64,190.56,3.5]
[1730946705904,12.59721093,190.64,190.6,2.6213]
[1730946707001,12.59721093,190.64,190.56,3.5]
[1730946707791,12.59721093,190.67,190.56,3.5]
[1730946709105,12.59721093,190.64,190.6,2.6213]
[1730946709298,12.59721093,190.64,190.54,3.5]
[1730946709704,12.59721093,190.64,190.57,2.6217]
[1730946710008,12.59721093,190.64,190.54,3.5]
[1730946710707,12.59721093,190.64,190.58,2.6214]
[1730946711106,12.59721093,190.64,190.53,4.7155]
[1730946711508,12.59721093,190.61,190.53,1.2155]
[1730946711703,12.59721093,190.61,190.51,39.02436153]
[1730946711902,12.59721093,190.61,190.51,35.52436153]
[1730946712106,15.21841093,190.61,190.51,35.52436153]
[1730946712406,15.21841093,190.61,190.5,3.5]
[1730946712600,12.59721093,190.59,190.5,3.5]
[1730946712853,12.59721093,190.59,190.48,3.5]
[1730946712995,12.59721093,190.56,190.48,3.5]
[1730946713207,12.59721093,190.56,190.54,2.6221]
[1730946714205,12.59721093,190.56,190.53,2.6221]
[1730946715209,12.59721093,190.56,190.45,12.59721093]
[1730946715410,12.59721093,190.56,190.52,2.6224]
[1730946715607,12.59721093,190.56,190.44,3.7217]
[1730946715810,12.59721093,190.56,190.44,7.2217]
[1730946716351,15.21911093,190.56,190.44,7.2217]
[1730946716715,2.6219,190.56,190.44,7.2217]
[1730946716915,12.59721093,190.56,190.51,2.6224]
[1730946717209,12.59721093,190.56,190.44,7.2217]
[1730946717408,12.59721093,190.54,190.44,4.702]
[1730946717917,12.59721093,190.54,190.49,2.6228]
[1730946719519,12.59721093,190.54,190.49,2.6227]
[1730946720706,12.59721093,190.54,190.47,2.6231]
[1730946720914,12.59721093,190.54,190.44,4.702]
[1730946721616,12.59721093,190.57,190.44,4.702]
[1730946721817,15.21891093,190.57,190.51,2.6225]
[1730946722415,2.6219,190.56,190.5,2.6225]
[1730946722916,12.59721093,190.54,190.5,2.6225]
[1730946723110,12.59721093,190.54,190.44,4.702]
[1730946723305,12.59721093,190.54,190.51,2.6224]
[1730946724727,12.59721093,190.54,190.44,4.702]
[1730946724911,3.6264,190.6,190.44,4.702]
[1730946724912,12.59721093,190.57,190.45,12.59721093]
[1730946725110,16.22361093,190.6,190.48,12.59721093]
[1730946725508,16.22361093,190.6,190.56,2.6217]
[1730946726017,16.22361093,190.6,190.5,3.5]
[1730946726218,15.02971093,190.6,190.5,3.5]
[1730946726522,12.59721093,190.65,190.51,12.59721093]
[1730946726718,12.59721093,190.65,190.51,13.78671093]
[1730946727126,12.59721093,190.65,190.54,12.59721093]
[1730946727325,2.4561,190.68,190.56,12.59721093]
[1730946727617,2.4561,190.68,190.51,1.1895]
[1730946727618,12.59721093,190.7,190.66,2.6204]
[1730946727816,12.59721093,190.67,190.57,1.22]
[1730946728012,3.6717,190.71,190.56,3.5]
[1730946728215,12.59721093,190.64,190.56,3.5]
[1730946728423,12.59721093,190.62,190.56,3.5]
[1730946728815,12.59721093,190.62,190.56,2.6217]
[1730946729011,12.59721093,190.56,190.4,35.54213406]
[1730946729213,12.59721093,190.53,190.41,2.99654704]
[1730946729512,12.59721093,190.53,190.46,2.6231]
[1730946729715,13.81001093,190.52,190.46,2.6231]
[1730946730015,13.81001093,190.52,190.41,4.72]
[1730946730220,1.2128,190.52,190.41,4.72]
[1730946730718,1.2128,190.52,190.44,2.6234]
[1730946730921,1.2128,190.52,190.41,4.72]
[1730946731219,1.2128,190.52,190.47,2.6231]
[1730946731420,2.4551,190.55,190.45,12.59721093]
[1730946731716,1.2128,190.58,190.48,12.59721093]
[1730946731915,1.2128,190.58,190.48,16.09721093]
[1730946732712,1.2128,190.58,190.54,2.6221]
[1730946733520,1.2128,190.58,190.55,2.6219]
[1730946736826,6.121,190.62,190.55,2.6219]
[1730946737128,2.621,190.62,190.55,2.6219]
[1730946737924,20.14522378,190.63,190.49,7.33711325]
[1730946738260,1.1996,190.66,190.54,20.14522378]
[1730946738433,1.2921,190.67,190.5,3.97139218]
[1730946738434,1.2582,190.68,190.58,20.14522378]
[1730946738625,20.14522378,190.71,190.58,20.14522378]
[1730946739129,2.6203,190.68,190.62,2.6209]
[1730946739529,2.6203,190.68,190.57,1.3037]
[1730946739530,20.14522378,190.68,190.57,1.3037]
[1730946739743,20.14522378,190.68,190.55,3.5]
[1730946739744,2.6204,190.67,190.55,3.5]
[1730946739921,20.14522378,190.68,190.55,3.5]
[1730946740125,2.6209,190.63,190.56,2.6217]
[1730946741526,2.6209,190.63,190.56,2.6218]
[1730946741928,1.3004,190.64,190.51,4.7561]
[1730946742124,1.3004,190.64,190.57,2.6217]
[1730946742532,3.9213,190.64,190.57,2.6217]
[1730946743092,1.3004,190.64,190.51,4.7561]
[1730946743427,1.3004,190.64,190.52,3.98124482]
[1730946743830,1.3004,190.64,190.6,2.6213]
[1730946744131,1.3004,190.64,190.51,4.7561]
[1730946744439,2.6209,190.63,190.57,2.6216]
[1730946745629,1.3004,190.64,190.51,4.7561]
[1730946745630,1.3004,190.64,190.51,1.2561]
[1730946745830,22.76632378,190.62,190.51,1.2561]